fUSD/lending_fUSD_20240702
["ID","MTS","AMOUNT","RATE_DAILY","PERIOD"]
[330887113,1719905438653,-500.0,0.00020778,2]
[330887115,1719905438663,-500.0,0.00020778,2]
[330887117,1719905438672,-500.0,0.00020778,2]
[330887119,1719905438682,-500.0,0.00020778,2]
[330887121,1719905438693,-500.0,0.00020778,2]
[330887123,1719905438702,-500.0,0.00020778,2]
[330887125,1719905438711,-500.0,0.00020778,2]
[330887127,1719905438720,-500.0,0.00020778,2]
[330887129,1719905438730,-500.0,0.00020778,2]
[330887131,1719905438739,-500.0,0.00020778,2]
[330887132,1719905438749,-500.0,0.00020778,2]
[330887134,1719905438759,-500.0,0.00020778,2]
[330887136,1719905438768,-500.0,0.00020778,2]
[330887154,1719905438929,-500.0,0.00020778,2]
[330887156,1719905438965,-500.0,0.00020778,2]
[330887158,1719905438975,-500.0,0.00020778,2]
[330887160,1719905438985,-500.0,0.00020778,2]
[330887162,1719905438995,-500.0,0.00020778,2]
[330887164,1719905439004,-500.0,0.00020778,2]
[330887166,1719905439015,-500.0,0.00020778,2]
[330887168,1719905439025,-500.0,0.00020778,2]
[330887170,1719905439035,-500.0,0.00020778,2]
[330887172,1719905439046,-500.0,0.00020778,2]
[330887174,1719905439056,-500.0,0.00020778,2]
[330887176,1719905439068,-500.0,0.00020778,2]
[330887178,1719905439080,-500.0,0.00020778,2]
[330887180,1719905439091,-500.0,0.00020778,2]
[330887182,1719905439102,-500.0,0.00020778,2]
[330887184,1719905439112,-500.0,0.00020778,2]
[330887186,1719905439123,-500.0,0.00020778,2]
[330887188,1719905439133,-500.0,0.00020778,2]
[330887190,1719905439143,-500.0,0.00020778,2]
[330887192,1719905439153,-500.0,0.00020778,2]
[330887194,1719905439163,-500.0,0.00020778,2]
[330887196,1719905439174,-500.0,0.00020778,2]
[330887198,1719905439185,-500.0,0.00020778,2]
[330887200,1719905439195,-500.0,0.00020778,2]
[330887202,1719905439205,-500.0,0.00020778,2]
[330887204,1719905439215,-500.0,0.00020778,2]
[330887206,1719905439226,-500.0,0.00020778,2]
[330887208,1719905439236,-500.0,0.00020778,2]
[330887210,1719905439247,-500.0,0.00020778,2]
[330887212,1719905439257,-500.0,0.00020778,2]
[330887214,1719905439267,-500.0,0.00020778,2]
[330887216,1719905439277,-500.0,0.00020778,2]
[330887218,1719905439287,-500.0,0.00020778,2]
[330887220,1719905439298,-500.0,0.00020778,2]
[330887222,1719905439308,-500.0,0.00020778,2]
[330887224,1719905439318,-500.0,0.00020778,2]
[330887226,1719905439329,-500.0,0.00020778,2]
[330887228,1719905439339,-500.0,0.00020778,2]
[330887230,1719905439351,-500.0,0.00020778,2]
[330887232,1719905439362,-500.0,0.00020778,2]
[330887234,1719905439372,-500.0,0.00020778,2]
[330887236,1719905439383,-500.0,0.00020778,2]
[330887238,1719905439392,-500.0,0.00020778,2]
[330887240,1719905439402,-500.0,0.00020778,2]
[330887242,1719905439412,-500.0,0.00020778,2]
[330887244,1719905439422,-500.0,0.00020778,2]
[330887246,1719905439432,-500.0,0.00020778,2]
[330887248,1719905439442,-500.0,0.00020778,2]
[330887250,1719905439452,-500.0,0.00020778,2]
[330887252,1719905439462,-500.0,0.00020778,2]
[330887254,1719905439472,-500.0,0.00020778,2]
[330887256,1719905439482,-500.0,0.00020778,2]
[330887258,1719905439491,-500.0,0.00020778,2]
[330887260,1719905439501,-500.0,0.00020778,2]
[330887262,1719905439511,-500.0,0.00020778,2]
[330887264,1719905439521,-500.0,0.00020778,2]
[330887266,1719905439532,-500.0,0.00020778,2]
[330887268,1719905439542,-500.0,0.00020778,2]
[330887270,1719905439552,-500.0,0.00020778,2]
[330887272,1719905439562,-500.0,0.00020778,2]
[330887274,1719905439575,-500.0,0.00020778,2]
[330887276,1719905439586,-500.0,0.00020778,2]
[330887278,1719905439596,-500.0,0.00020778,2]
[330887280,1719905439607,-500.0,0.00020778,2]
[330887282,1719905439617,-500.0,0.00020778,2]
[330887284,1719905439627,-500.0,0.00020778,2]
[330887285,1719905439637,-500.0,0.00020778,2]
[330887287,1719905439651,-500.0,0.00020778,2]
[330887290,1719905439661,-500.0,0.00020778,2]
[330887293,1719905439671,-500.0,0.00020778,2]
[330887294,1719905439681,-500.0,0.00020778,2]
[330887296,1719905439692,-917.0328189,0.00020781,2]
[330887298,1719905439703,-154.67550065,0.00020795,2]
[330887301,1719905439713,-260158.746827,0.000208,3]
[330887303,1719905439723,-1000.0,0.000208,2]
[330887305,1719905439733,-155.31871668,0.0002081,2]
[330887306,1719905439744,-182.64458232,0.00020811,2]
[330887309,1719905439755,-160.0,0.00020812,2]
[330887310,1719905439765,-160.0,0.00020821,2]
[330887313,1719905439775,-538.42,0.00020821,5]
[330887315,1719905439786,-180.210453,0.00020822,2]
[330887317,1719905439796,-160.0,0.0002083,2]
[330887319,1719905439806,-154.67550065,0.00020836,2]
[330887321,1719905439817,-160.0,0.00020838,2]
[330887323,1719905439829,-160.0,0.00020847,2]
[330887324,1719905439839,-500.0,0.00020847,2]
[330887326,1719905439849,-160.0,0.00020856,2]
[330887328,1719905439858,-500.0,0.00020856,2]
[330887330,1719905439869,-159.67454371,0.00020857,2]
[330887332,1719905439879,-160.0,0.00020865,2]
[330887334,1719905439889,-500.0,0.00020865,2]
[330887337,1719905439901,-160.0,0.00020874,2]
[330887340,1719905439911,-500.0,0.00020874,2]
[330887343,1719905439921,-160.0,0.00020882,2]
[330887346,1719905439931,-500.0,0.00020882,2]
[330887350,1719905439940,-3083.59360999,0.00020886,2]
[330887354,1719905439950,-3083.59360995,0.00020887,2]
[330887358,1719905439960,-3083.59360995,0.00020889,2]
[330887361,1719905439971,-3083.59360995,0.0002089,2]
[330887365,1719905439980,-3083.59360995,0.00020891,2]
[330887369,1719905439991,-160.0,0.00020891,2]
[330887372,1719905440002,-500.0,0.00020891,2]
[330887375,1719905440012,-500.0,0.00020891,2]
[330887378,1719905440023,-3083.59360995,0.00020892,2]
[330887381,1719905440032,-3083.59360995,0.00020894,2]
[330887384,1719905440042,-3083.59360995,0.00020895,2]
[330887386,1719905440052,-3083.59360995,0.00020896,2]
[330887388,1719905440062,-3083.59360995,0.00020897,2]
[330887390,1719905440071,-3083.59360995,0.00020899,2]
[330887392,1719905440082,-500.0,0.000209,2]
[330887394,1719905440092,-353.10166652,0.000209,2]
[330887396,1719905440103,-5800.0,0.000209,2]
[330887398,1719905440113,-160.0,0.000209,2]
[330887400,1719905440123,-500.0,0.000209,2]
[330887402,1719905440133,-5800.0,0.000209,2]
[330887404,1719905440143,-500.0,0.000209,2]
[330887407,1719905440153,-5800.0,0.000209,2]
[330887411,1719905440164,-1000.0,0.000209,2]
[330887415,1719905440174,-25000.0,0.000209,2]
[330887418,1719905440183,-500.0,0.000209,2]
[330887421,1719905440194,-647.39910566,0.000209,2]
[330887424,1719905440205,-3083.59360995,0.000209,2]
[330887427,1719905440215,-10048.67604877,0.000209,2]
[330887430,1719905440226,-1863.33280742,0.000209,2]
[330887433,1719905440236,-174.64624434,0.000209,2]
[330887436,1719905440246,-1019.214678,0.000209,3]
[330887439,1719905440256,-182.64458232,0.000209,2]
[330887442,1719905440266,-425.1920261,0.000209,2]
[330887445,1719905440275,-1280.9548049,0.000209,2]
[330887448,1719905440286,-2144.26626066,0.000209,2]
[330887451,1719905440296,-397.18181315,0.000209,2]
[330887454,1719905440306,-371.05314018,0.000209,2]
[330887456,1719905440316,-10798.59233567,0.000209,2]
[330887458,1719905440326,-157.1,0.00020925,2]
[330887460,1719905440336,-151.0,0.00020942,2]
[330887462,1719905440346,-13048.06,0.00020951,2]
[330887464,1719905440356,-6145.09,0.00020951,2]
[330887466,1719905440366,-4417.99,0.00020951,2]
[330887468,1719905440376,-9999.99,0.00020951,2]
[330887470,1719905440386,-40400.9844338,0.00020986,2]
[330887472,1719905440397,-30802.6042176,0.00020986,2]
[330887474,1719905440406,-21204.2240015,0.00020986,2]
[330887476,1719905440417,-11605.8437853,0.00020986,2]
[330887478,1719905440427,-2007.4635692,0.00020986,2]
[330887480,1719905440438,-298.9768061,0.00020986,2]
[330887482,1719905440448,-298.9768061,0.00020986,2]
[330887484,1719905440458,-298.9768061,0.00020986,2]
[330887486,1719905440468,-298.9768061,0.00020986,2]
[330887488,1719905440478,-298.9768061,0.00020986,2]
[330887490,1719905440489,-917.0328189,0.00020986,2]
[330887492,1719905440498,-917.0328189,0.00020986,2]
[330887494,1719905440508,-917.0328189,0.00020986,2]
[330887496,1719905440519,-917.0328189,0.00020986,2]
[330887498,1719905440529,-917.0328189,0.00020986,2]
[330887500,1719905440539,-7521.5724165,0.00020986,2]
[330887502,1719905440550,-5734.6131904,0.00020986,2]
[330887504,1719905440560,-3947.6539643,0.00020986,2]
[330887506,1719905440571,-2160.6947382,0.00020986,2]
[330887508,1719905440582,-373.7355121,0.00020986,2]
[330887510,1719905440593,-26327.0,0.00020986,2]
[330887512,1719905440603,-150.0,0.00020986,4]
[330887514,1719905440614,-150.0,0.00020986,4]
[330887516,1719905440624,-150.0,0.00020986,4]
[330887518,1719905440634,-150.0,0.00020986,4]
[330887520,1719905440644,-270.84177719,0.00020986,4]
[330887522,1719905440655,-150.0,0.00020986,4]
[330887524,1719905440665,-150.0,0.00020986,4]
[330887526,1719905440675,-150.0,0.00020986,4]
[330887528,1719905440686,-150.0,0.00020986,4]
[330887530,1719905440696,-160.88761736,0.00020986,4]
[330887532,1719905440707,-150.0,0.00020986,4]
[330887534,1719905440717,-150.0,0.00020986,4]
[330887536,1719905440727,-392627.95596161,0.00021,7]
[330887554,1719905440900,-2129.06831967,0.00021,7]
[330887559,1719905440930,-460.6431268,0.00021,7]
[330887561,1719905440941,-3862.00569029,0.00021,7]
[330887562,1719905440952,-19845.29342357,0.00021,7]
[330887564,1719905440962,-190.65591524,0.00021,2]
[330887565,1719905440972,-155.0,0.00021,2]
[330887566,1719905440982,-5000.0,0.00021,14]
[330887567,1719905440992,-594.7708632,0.00021,2]
[330887568,1719905441002,-2941.13693166,0.00021,2]
[330887569,1719905441012,-155.0,0.00021,2]
[330887570,1719905441022,-86808.42097168,0.00021,2]
[330887571,1719905441042,-308.6,0.00021,2]
[330887576,1719905441141,-210.03866321,0.00021,5]
[330887578,1719905441151,-1531.61449012,0.00021,2]
[330887580,1719905441163,-5060.62730203,0.00021,2]
[330887583,1719905441174,-124259.47002143,0.00021,2]
[330887586,1719905441191,-627.22,0.00021,2]
[330887588,1719905441203,-124309.29418572,0.00021,2]
[330887590,1719905441214,-546.06179378,0.00021,2]
[330887592,1719905441226,-3494.49188174,0.00021,2]
[330887593,1719905441247,-167.03060177,0.00020777,2]
[330887594,1719905441257,-552.2370326,0.00021,2]
[330887595,1719905441269,-33276.14929742,0.00021,2]
[330887596,1719905441281,-4896.92,0.00021,2]
[330887624,1719905442932,-598.10672527,0.00020777,2]
[330887625,1719905442943,-99.97691371,0.00020777,2]
[330887626,1719905442953,-884.0,0.00020999,2]
[330887627,1719905442962,-10314.43282509,0.00021,2]
[330887628,1719905442973,-880.36175698,0.00021,2]
[330887629,1719905442984,-1857.46232275,0.00021,2]
[330887630,1719905442996,-431.92115811,0.00021,2]
[330887631,1719905443007,-349.21257017,0.00021,2]
[330887632,1719905443018,-524.50138026,0.00021,2]
[330887633,1719905443148,-1175.00756873,0.00021,2]
[330887634,1719905443160,-6280.94924175,0.00021,2]
[330887635,1719905443173,-4675.74706937,0.00021,2]
[330887636,1719905443450,-500.0,0.00021,2]
[330887638,1719905443462,-19545.37229926,0.00021,2]
[330887641,1719905443473,-730.07140233,0.00021,2]
[330887643,1719905443485,-652.62529538,0.00021,2]
[330887650,1719905445999,-465.38909265,0.00020999,2]
[330887651,1719905446009,-66350.58624255,0.00021,2]
[330887652,1719905446020,-500.0,0.00021,2]
[330887653,1719905446032,-784.34273564,0.00021,2]
[330887787,1719906631830,-739.28642573,0.000137,2]
[330887788,1719906631840,-14064.2283,0.000138,2]
[330887789,1719906631850,-220.0,0.0001389,3]
[330887790,1719906631859,-242.0,0.00013899,2]
[330887791,1719906631869,-5005.4137938,0.000139,2]
[330887792,1719906631879,-921.74233039,0.000139,2]
[330887793,1719906631888,-524.34778482,0.000139,2]
[330887794,1719906631898,-8766.93995142,0.000139,2]
[330887795,1719906631907,-31346.68752453,0.000139,2]
[330887796,1719906631937,-16720.27707917,0.000139,2]
[330887797,1719906631947,-335.83273307,0.000139,2]
[330887798,1719906631957,-715.61419936,0.000139,2]
[330887799,1719906631967,-2418.3482608,0.000139,2]
[330887800,1719906631978,-892.30034146,0.000139,2]
[330887801,1719906631994,-4458.23572949,0.000139,2]
[330887823,1719906637781,-3206.00367265,0.000139,2]
[330887824,1719906637791,-200.0,0.00013999,2]
[330887825,1719906637801,-3795666.155896,0.00014,2]
[330887826,1719906637813,-309707.37053182,0.00014,2]
[330887832,1719906639908,-62855.82678178,0.00014,2]
[330887833,1719906640067,-848.43799996,0.00014,2]
[330887834,1719906640084,-345.12266555,0.00014,2]
[330887838,1719906642882,-785.71457315,0.00014,2]
[330887839,1719906642936,-49054.52253702,0.00014,2]
[330887844,1719906645698,-319.26206599,0.0001393,2]
[330887845,1719906645754,-415.0,0.0001393,2]
[330887846,1719906645767,-589.15262601,0.0001393,2]
[330887847,1719906645776,-5439.45207559,0.00014,2]
[330887848,1719906645864,-2133.07562019,0.00014,2]
[330887849,1719906645876,-49815.33784991,0.00014,2]
[330887850,1719906645919,-1365.03427195,0.00014,2]
[330887851,1719906646029,-1482.28840542,0.00014,2]
[330887875,1719907187967,9240.07117437,0.00011199,2]
[330887877,1719907252384,300.41202061,0.00011199,2]
[330887878,1719907265988,555.58378227,0.00011199,2]
[330887879,1719907278032,737.91,0.00011078,2]
[330887880,1719907296113,13406.09419712,0.00011199,2]
[330887881,1719907296142,3796.38518197,0.00011199,2]
[330887882,1719907351498,150.0,0.00021763,120]
[330887883,1719907397967,9240.07117437,0.00011199,2]
[330887893,1719907831904,-292.50862256,0.00012273,2]
[330887894,1719907831914,-292.50862256,0.00012302,2]
[330887895,1719907831927,-150.0,0.000126,2]
[330887896,1719907831936,-250.0,0.00012607,2]
[330887897,1719907831946,-288.0,0.0001261,2]
[330887898,1719907831956,-300.0,0.0001261,2]
[330887899,1719907831966,-169.84,0.00012611,2]
[330887900,1719907831975,-200.0,0.00012697,2]
[330887901,1719907831984,-200.0,0.00012741,2]
[330887902,1719907831995,-340.08,0.00012746,2]
[330887903,1719907832005,-681.81275555,0.0001278,2]
[330887904,1719907832017,-347.96815075,0.0001278,2]
[330887905,1719907832029,-3325.2271754,0.0001278,2]
[330887906,1719907832041,-500.0,0.0001278,2]
[330887907,1719907832055,-4387.7519183,0.0001278,2]
[330887908,1719907832064,-2284.16,0.00012798,2]
[330887909,1719907832074,-150.0,0.00012833,2]
[330887910,1719907832083,-150.0,0.00012887,2]
[330887911,1719907832092,-250.0,0.00012901,2]
[330887912,1719907832102,-500.0,0.00012927,2]
[330887913,1719907832111,-1000.0,0.00012942,2]
[330887914,1719907832121,-150.0,0.00013067,2]
[330887915,1719907832130,-299.99,0.00013067,2]
[330887916,1719907832139,-499.99,0.00013067,2]
[330887917,1719907832148,-150.99,0.00013128,2]
[330887918,1719907832157,-150.99,0.00013128,2]
[330887919,1719907832167,-1192.70459917,0.00013128,2]
[330887920,1719907832182,-11071.26339717,0.00013128,2]
[330887921,1719907832191,-172.42966663,0.00013242,2]
[330887922,1719907832200,-150.0,0.000133,2]
[330887923,1719907832210,-381.19605377,0.00013332,2]
[330887924,1719907832221,-360.64908182,0.00013332,2]
[330887925,1719907832231,-737.91,0.00013342,2]
[330887926,1719907832240,-1910.0,0.00013448,2]
[330887927,1719907832249,-530.36557167,0.00013472,2]
[330887928,1719907832259,-153.55,0.00013511,2]
[330887929,1719907832269,-150.0,0.00013533,2]
[330887930,1719907832278,-499.99,0.00013572,2]
[330887931,1719907832287,-297.46362641,0.00013574,2]
[330887932,1719907832296,-200.0,0.00013699,2]
[330887933,1719907832305,-2008.88,0.00013699,2]
[330887934,1719907832315,-161.63,0.00013699,2]
[330887935,1719907832324,-2751.0,0.00013699,2]
[330887936,1719907832333,-213.48,0.00013716,2]
[330887937,1719907832343,-372.49713113,0.00013738,2]
[330887938,1719907832352,-213.48,0.00013754,2]
[330887939,1719907832361,-22.86165455,0.00013767,2]
[330887940,1719907832374,-127.13834545,0.00013767,2]
[330887941,1719907832384,-213.48,0.00013791,2]
[330887943,1719907832394,-271.18165455,0.00013799,2]
[330887945,1719907832405,-45.3815993,0.00013799,2]
[330887947,1719907832414,-574.4883807,0.000138,2]
[330887949,1719907832426,-704.92261432,0.000138,2]
[330887951,1719907832437,-2332.32978955,0.000138,2]
[330887953,1719907832449,-713.07366266,0.000138,2]
[330887954,1719907832461,-156.54765277,0.000138,2]
[330887955,1719907832470,-213.48,0.00013829,2]
[330887957,1719907832480,-420.0,0.00013835,2]
[330887959,1719907832490,-103.56961971,0.00013867,2]
[330887961,1719907832502,-109.91038029,0.00013867,2]
[330887962,1719907832511,-4034.35670547,0.0001389,2]
[330887963,1719907832522,-6241.41226186,0.0001389,2]
[330887964,1719907832535,-404.4999995,0.0001389,2]
[330887974,1719907837859,-27979.95646681,0.0001261,2]
[330887975,1719907837869,-3331.40135744,0.0001389,2]
[330887976,1719907837878,-1.16217575,0.00013899,2]
[330887977,1719907837970,-4085.00692348,0.00013899,2]
[330887978,1719907837979,-162.32881535,0.000139,2]
[330887979,1719907837989,-773.4208,0.000139,2]
[330887980,1719907837998,-2571.30719533,0.000139,2]
[330887981,1719907838027,-4070.16904226,0.000139,2]
[330887982,1719907838038,-576.87446552,0.000139,2]
[330887983,1719907838086,-902.63081299,0.000139,2]
[330887984,1719907838099,-8577.98927793,0.000139,2]
[330887985,1719907838108,-1240.08469888,0.000139,2]
[330887986,1719907838119,-1000.0,0.000139,2]
[330887987,1719907838129,-174.95455157,0.000139,2]
[330887988,1719907838139,-3599.53077857,0.000139,2]
[330887989,1719907838151,-378.73682576,0.000139,2]
[330887990,1719907838161,-606.67240164,0.000139,2]
[330887991,1719907838171,-12766.40659413,0.000139,2]
[330887992,1719907838181,-213.48,0.00013904,2]
[330887993,1719907838190,-193.2637923,0.00013906,2]
[330887994,1719907838200,-173.21,0.00013916,2]
[330887995,1719907838210,-213.48,0.00013942,2]
[330887996,1719907838219,-213.48,0.0001398,2]
[330887997,1719907838229,-47096.856,0.0001399,2]
[330887998,1719907838438,-193.38921263,0.0001399,2]
[330887999,1719907838484,-200.0,0.00013999,2]
[330888000,1719907838494,-300.0,0.00013999,5]
[330888001,1719907838504,-1338.35,0.00013999,2]
[330888002,1719907838514,-3720592.27543524,0.00014,2]
[330888003,1719907838526,-309707.37053182,0.00014,2]
[330888004,1719907838537,-771.65526251,0.00014,2]
[330888005,1719907838549,-518.89599798,0.00014,2]
[330888006,1719907838560,-4985.71833772,0.00014,2]
[330888007,1719907838572,-886573.94778906,0.00014,2]
[330888018,1719907840096,-1107.05229675,0.00014,2]
[330888019,1719907840108,-1050.51565051,0.00014,2]
[330888020,1719907840157,-4758.8714046,0.00014,2]
[330888021,1719907840169,-197248.86786876,0.00014,2]
[330888022,1719907840181,-1261.73691636,0.00014,2]
[330888023,1719907840192,-4406.46887546,0.00014,2]
[330888024,1719907840216,-530.86535505,0.00014,2]
[330888025,1719907840227,-1819.99999776,0.00014,2]
[330888026,1719907840238,-453.8784,0.00014,2]
[330888027,1719907840249,-362.35711128,0.00014,2]
[330888028,1719907840381,-192504.34732084,0.00014,2]
[330888029,1719907840558,-922.8938064,0.00014,2]
[330888030,1719907840568,-363.6,0.00014,2]
[330888031,1719907840579,-7347.55812948,0.00014,2]
[330888032,1719907840590,-4130.24694756,0.00014,2]
[330888033,1719907840601,-62484.29335375,0.00014,2]
[330888034,1719907840612,-659.94979241,0.00014,2]
[330888035,1719907840651,-50851.26975652,0.00014,2]
[330888036,1719907840662,-707.53451415,0.00014,2]
[330888037,1719907840673,-1035.81827002,0.00014,2]
[330888038,1719907840685,-7535.0654022,0.00014,2]
[330888039,1719907840739,-1583.2356119,0.00014,2]
[330888047,1719907842992,-460.32635449,0.00014,2]
[330888048,1719907843004,-372.51975567,0.00014,2]
[330888049,1719907843015,-450.180002,0.00014,2]
[330888050,1719907843026,-281.326473,0.00014,2]
[330888051,1719907843037,-6024.1183307,0.00014,2]
[330888052,1719907843048,-6614.30466839,0.00014,2]
[330888053,1719907843058,-16736.653565,0.00014,2]
[330888054,1719907843069,-590.6363332,0.00014,2]
[330888055,1719907843082,-615.28590621,0.00014,2]
[330888056,1719907843097,-5087.95758776,0.00014,2]
[330888057,1719907843110,-521.44789372,0.00014,2]
[330888058,1719907843120,-3765.60423711,0.00014,2]
[330888059,1719907843131,-57130.71310242,0.00014,2]
[330888060,1719907843143,-10475.19883426,0.00014,2]
[330888061,1719907843156,-1468.79524653,0.00014,2]
[330888062,1719907843167,-1234.99446492,0.00014,2]
[330888063,1719907843178,-2024.70883793,0.00014,2]
[330888064,1719907843189,-600.64996105,0.00014,2]
[330888065,1719907843204,-3984.72641164,0.00014,2]
[330888066,1719907843215,-1007.06053773,0.00014,2]
[330888067,1719907843227,-281.326473,0.00014,2]
[330888068,1719907843238,-3576.31254999,0.00014,2]
[330888069,1719907843249,-8334.24294176,0.00014,2]
[330888070,1719907843260,-307.74597549,0.00014,2]
[330888071,1719907843271,-35639.72776345,0.00014,2]
[330888072,1719907843297,-17721.86150916,0.00014,2]
[330888073,1719907843309,-9845.86782378,0.00014,2]
[330888074,1719907843357,-691.7214758,0.00014,2]
[330888075,1719907843368,-400.36535376,0.00014,2]
[330888076,1719907843379,-446.51173508,0.00014,2]
[330888077,1719907843391,-382.82903497,0.00014,2]
[330888078,1719907843404,-5060.49712032,0.00014,2]
[330888083,1719907845897,-98802.12649784,0.00014,2]
[330888084,1719907846014,-624.58643076,0.00014,2]
[330888085,1719907846292,-1565.825,0.00014,2]
[330888089,1719908164280,866.75884238,0.00011199,2]
[330888090,1719908190518,683.86,0.00010661,2]
[330888091,1719908194278,866.75884238,0.00011199,2]
[330888092,1719908348474,1264.32195748,0.00011199,2]
[330888093,1719908350218,449.82534604,0.00011199,2]
[330888094,1719908366417,2201.0498595,0.00011199,2]
[330888096,1719908414244,3404.52218583,0.00011199,2]
[330888097,1719908520735,3036.22502843,0.00011199,2]
[330888100,1719908678927,2200.09526978,0.00011199,2]
[330888101,1719908702848,209.99775219,0.00011199,2]
[330888102,1719908705382,1805.49193075,0.00011199,2]
[330888103,1719908706653,2377.33116314,0.00011199,2]
[330888104,1719908725654,626.81286209,0.00011199,2]
[330888105,1719908737070,690.28734422,0.00011199,2]
[330888106,1719908751910,-420.17,0.00018849,30]
[330888107,1719908751958,-579.83,0.00021787,30]
[330888108,1719908752036,-984.4115807,0.00021787,30]
[330888109,1719908900582,649.66,0.00010444,2]
[330888110,1719908902353,385.15,0.00018849,30]
[330888111,1719908906800,443.90277565,0.00011199,2]
[330888112,1719908937662,7721.82282139,0.00011199,2]
[330888117,1719908972057,1500.0,0.00011199,2]
[330888121,1719909017003,235.50457994,0.00011199,2]
[330888127,1719909032979,-168.61,0.00012404,2]
[330888128,1719909032988,-548.52285481,0.00012708,2]
[330888129,1719909033081,-101.13714519,0.00012708,2]
[330888130,1719909033090,-266.53614722,0.00012744,3]
[330888131,1719909033104,-233.46385278,0.00012744,3]
[330888132,1719909033114,-246.23,0.00012788,2]
[330888133,1719909033123,-250.0,0.00012807,2]
[330888134,1719909033133,-1000.0,0.00012853,2]
[330888135,1719909033142,-150.69,0.00012872,2]
[330888136,1719909033150,-500.0,0.00012873,2]
[330888137,1719909033163,-250.0,0.000129,2]
[330888138,1719909033173,-227.72023062,0.000129,2]
[330888139,1719909033184,-72.26976938,0.000129,2]
[330888140,1719909033194,-150.69,0.00012914,2]
[330888141,1719909033202,-150.69,0.00012956,2]
[330888142,1719909033211,-79.86023062,0.00012998,2]
[330888143,1719909033222,-70.82976938,0.00012998,2]
[330888144,1719909033233,-150.69,0.0001304,2]
[330888145,1719909033247,-150.69,0.00013081,2]
[330888146,1719909033256,-150.69,0.00013123,2]
[330888147,1719909033266,-300.0,0.00013127,2]
[330888148,1719909033275,-18389.57,0.00013128,2]
[330888149,1719909033284,-150.69,0.00013165,2]
[330888150,1719909033294,-150.69,0.00013207,2]
[330888151,1719909033303,-150.69,0.00013249,2]
[330888152,1719909033313,-150.69,0.00013291,2]
[330888153,1719909033322,-150.69,0.00013333,2]
[330888154,1719909033332,-150.69,0.00013375,2]
[330888155,1719909033342,-179.06,0.00013404,2]
[330888156,1719909033352,-150.69,0.00013417,2]
[330888157,1719909033360,-150.69,0.00013459,2]
[330888158,1719909033370,-150.69,0.00013501,2]
[330888159,1719909033380,-221.65705849,0.00013516,2]
[330888160,1719909033389,-150.69,0.00013543,2]
[330888161,1719909033399,-155.74076896,0.00013574,2]
[330888162,1719909033408,-320.59,0.00013699,2]
[330888163,1719909033417,-668.73,0.00013699,2]
[330888164,1719909033427,-1004.44,0.00013699,2]
[330888165,1719909033436,-200.0,0.00013699,2]
[330888166,1719909033446,-735.56299996,0.000137,2]
[330888167,1719909033456,-1116.07622901,0.000138,2]
[330888168,1719909033465,-200.0,0.000138,5]
[330888169,1719909033475,-505.95474293,0.000138,2]
[330888170,1719909033484,-213.26,0.0001388,3]
[330888171,1719909033494,-639.82,0.0001388,3]
[330888172,1719909033503,-215403.10078017,0.0001389,2]
[330888173,1719909033516,-1562.75,0.0001389,2]
[330888174,1719909033527,-1877.143519,0.0001389,2]
[330888175,1719909033538,-1255.41,0.0001389,2]
[330888176,1719909033549,-277.94262863,0.0001389,2]
[330888179,1719909038109,-34810.2981722,0.0001389,2]
[330888181,1719909038120,-162.32881535,0.000139,2]
[330888183,1719909038129,-12222.38396117,0.000139,2]